Cogmind - Beta 16.1 @@@ ROGUE MODE // 2026.04.17 @ 13:16:54 Player: Thqwib-Linux Result: Destroyed by M Guard with Hellfire Missile Launcher Performance ------------- Evolutions (9) 4500 Regions Visited (28) 5600 Robots Destroyed (313) 1565 Value Destroyed (15038) 15038 Prototype IDs (244) 4880 Alien Tech Used (0) 0 Bonus (23462) 23462 TOTAL SCORE: 55045 Bonus ------- Triggered Max Security 1000 High Alert Combat Kills 4023 Follower Combat Kills 2568 Aligned with FarCom 300 Met Data Miner 300 Used Data Conduit 3000 Met Warlord at Base 500 MAIN.C Attacked Warlord 500 Warlord Defense Kills 1472 Built Enhanced Grunts 300 A7 Reached Mainframe 300 Met R17 at Cetus 500 Met R17 at Research 2000 Met Warlord at Research 2000 Invited to Help at Command 2000 Pursued by Intercept 1500 Met Warlord at Command 2000 Friendly Fire -801 Cogmind --------- Core Integrity 0/1600 Matter 6/300 Energy 24/100 System Corruption 38% Temperature Cool (0) Movement Core (50) Location -1/Command Parts ------- > --- POWER (2) -------- (None) > --- PROPULSION (6) --- (None) > --- UTILITY (13) ----- (None) > --- WEAPON (4) ------- (None) > --- INVENTORY (5) ---- Light Quantum Reactor Advanced Cooling System Enhanced Quantum Rifle Enhanced Nova Cannon Improved Remote Datajack Peak State ------------ > --- POWER ------------ Light Quantum Reactor Improved Quantum Reactor > --- PROPULSION ------- Centrium Heavy Treads High-density Centrium Wheel High-density Centrium Wheel High-density Centrium Wheel High-density Centrium Wheel > --- UTILITY ---------- Advanced Cooling System Huge Storage Unit Experimental Targeting Computer Experimental Core Analyzer Experimental Armor Integrity Analyzer Improved Transmission Jammer Centrium Medium Armor Plating Centrium Medium Armor Plating Advanced Force Field Deep Network Scanner Ghost Barrier > --- WEAPON ----------- Quantum Rifle Railgun Helical Railgun Helical Railgun > --- INVENTORY -------- Quantum Reactor Centrium Heavy Treads Centrium Heavy Treads Centrium Wheel Centrium Wheel Structural Scanner Hardened Heavy Armor Plating Graphene Brace Advanced Point Defense System Advanced Point Defense System Long-range Tractor Beam Heavy Neutron Cannon Helical Railgun Bore Cannon Bore Cannon Compact Mass Driver Improved Remote Datajack Improved Plasma Cutter [Rating: 204] Favorites ----------- Power Antimatter Reactor Engine Light Ion Engine Power Core Enhanced Nuclear Core Reactor Antimatter Reactor Propulsion Armored Huge Wheel Treads Centrium Heavy Treads Leg Aluminum Leg Wheel Armored Huge Wheel Utility Huge Storage Unit Device Advanced Heat Sink Storage Huge Storage Unit Processor Core Analyzer Hackware Deep Network Scanner Protection Centrium Medium Armor Plating Weapon Advanced KE Penetrator Energy Gun Particle Gun Energy Cannon Cooled Plasma Cannon Ballistic Gun Advanced KE Penetrator Ballistic Cannon Compact Mass Driver Launcher Mini Grenade Launcher Special Weapon Improved Plasma Cutter Impact Weapon Powered Hammer Slashing Weapon Longsword +1 Build | -11 -10 -10 -10 -9 -8 -7 -7 -7 -7 -7 -7 -6 -6 -6 -6 -6 -6 -5 -5 -5 -5 -4 -4 -3 -2 -2 -1 -1 ------- Run | Yrd Mat Min Exi Min Mat Fac Was Fac Low Low Dat Pro Fac Ext Cet Arc Hub Fac Upp Upp War Pro Fac Res Res Qua Acc Com Slots Evolved 18 | . . . . . 4 2 . . . . . . 2 . . . . 2 . . . . 2 2 2 . 2 . Power 1 | . . . . . . . . . . . . . . . . . . . . . . . 1 . . . . . Propulsion 4 | . . . . . 2 . . . . . . . . . . . . . . . . . . 2 . . . . Utility 11 | . . . . . 2 . . . . . . . 2 . . . . 2 . . . . 1 . 2 . 2 . Weapon 2 | . . . . . . 2 . . . . . . . . . . . . . . . . . . . . . . Parts Attached 208 | 2 14 . . 2 25 15 15 7 5 . 7 1 5 10 7 1 2 2 3 . 6 . 6 13 23 . 13 24 Power 31 | . 3 . . . 2 3 2 . 1 . 1 . . . 3 . . . 1 . . . 2 1 4 . 4 4 Engine 6 | . 2 . . . 2 1 . . 1 . . . . . . . . . . . . . . . . . . . Core 3 | . 1 . . . . 2 . . . . . . . . . . . . . . . . . . . . . . Reactor 22 | . . . . . . . 2 . . . 1 . . . 3 . . . 1 . . . 2 1 4 . 4 4 Propulsion 36 | 2 4 . . 1 7 5 3 . . . 1 . . 1 1 . . . . . 1 . . 6 1 . . 3 Treads 14 | 1 1 . . . 2 2 2 . . . 1 . . . 1 . . . . . 1 . . . 1 . . 2 Leg . | . . . . . . . . . . . . . . . . . . . . . . . . . . . . . Wheel 22 | 1 3 . . 1 5 3 1 . . . . . . 1 . . . . . . . . . 6 . . . 1 Hover . | . . . . . . . . . . . . . . . . . . . . . . . . . . . . . Flight . | . . . . . . . . . . . . . . . . . . . . . . . . . . . . . Utility 77 | . 4 . . . 8 6 5 5 1 . 3 . 3 4 2 . 1 1 2 . 3 . 2 4 9 . 4 10 Device 33 | . 1 . . . . 3 2 . 1 . . . 1 . 1 . . . 2 . 2 . 2 3 2 . 4 9 Storage 7 | . 3 . . . 1 1 . 2 . . . . . . . . . . . . . . . . . . . . Processor 10 | . . . . . 2 1 1 2 . . . . . . . . . 1 . . . . . . 3 . . . Hackware 7 | . . . . . 2 1 . . . . . . 2 . . . 1 . . . 1 . . . . . . . Protection 20 | . . . . . 3 . 2 1 . . 3 . . 4 1 . . . . . . . . 1 4 . . 1 Artifact . | . . . . . . . . . . . . . . . . . . . . . . . . . . . . . Weapon 64 | . 3 . . 1 8 1 5 2 3 . 2 1 2 5 1 1 1 1 . . 2 . 2 2 9 . 5 7 Energy Gun 10 | . 3 . . . 1 . . . 1 . . . . 1 . . . 1 . . . . . . 1 . 1 1 Energy Cannon 8 | . . . . . . . . . . . 1 1 2 . . 1 . . . . . . 1 1 1 . . . Ballistic Gun 35 | . . . . . 5 1 4 1 1 . 1 . . 4 1 . 1 . . . 2 . 1 1 7 . 3 2 Ballistic Cannon 7 | . . . . 1 1 . 1 . . . . . . . . . . . . . . . . . . . 1 3 Launcher 1 | . . . . . . . . . 1 . . . . . . . . . . . . . . . . . . . Special Weapon 1 | . . . . . . . . . . . . . . . . . . . . . . . . . . . . 1 Impact Weapon 1 | . . . . . . . . 1 . . . . . . . . . . . . . . . . . . . . Slashing Weapon 1 | . . . . . 1 . . . . . . . . . . . . . . . . . . . . . . . Piercing Weapon . | . . . . . . . . . . . . . . . . . . . . . . . . . . . . . Special Melee Weapon . | . . . . . . . . . . . . . . . . . . . . . . . . . . . . . Unidentified Prototypes 9 | . . . . . 1 2 . . . . . . 2 . . . . . . . 1 . . . 1 . . 2 Corrupted Parts 3 | . . . . . . . . . . . . . . . . . . . . . 3 . . . . . . . System Corruption 12 | . . . . . . . . . . . . . . . . . . . . . 12 . . . . . . . Parts Lost 65 | . 1 . . 1 1 . 5 2 2 . 3 . . 2 . 1 . . . . . . . . 10 . 13 24 Power 8 | . . . . . . . 1 . 1 . . . . . . . . . . . . . . . 1 . 2 3 Propulsion 12 | . 1 . . . . . . . . . 1 . . 1 . . . . . . . . . . 1 . 2 6 Utility 19 | . . . . . . . 1 . . . . . . 1 . . . . . . . . . . 4 . 4 9 Weapon 26 | . . . . 1 1 . 3 2 1 . 2 . . . . 1 . . . . . . . . 4 . 5 6 Highest Loss Streak 22 | . 1 . . 1 1 . 5 1 1 . 2 . . 1 . 1 . . . . . . . . 4 . 7 22 To Critical Strikes 2 | . . . . . . . . . . . . . . 1 . 1 . . . . . . . . . . . . Average Backups 18 | 4 9 10 10 11 20 23 8 9 15 16 19 21 21 22 22 21 22 20 20 21 21 21 19 21 21 14 14 20 Power . | 1 1 1 1 1 1 1 . . . . . 1 1 1 1 1 1 1 1 1 1 1 . . . . . 1 Propulsion 2 | 3 2 2 2 2 2 3 1 1 2 2 2 4 4 3 1 2 2 2 3 3 3 3 3 2 3 3 2 1 Utility 7 | . 1 2 2 2 7 10 4 4 8 10 12 12 12 11 10 10 11 9 8 8 8 9 8 9 7 5 3 4 Weapon 6 | . 3 5 5 6 9 7 2 2 4 4 4 4 4 6 8 8 8 8 8 8 6 6 6 6 6 4 4 10 Tool/Special . | . . . . . . . . . . . . . . . . . . . . . . . . . . . . . Unused Backups 85 | . 5 . . . 11 13 17 2 . . 2 . 2 . 6 . 1 . 3 . 1 . . 4 3 . . 15 Power 12 | . 2 . . . . 3 1 . . . . . . . 1 . . . . . . . . 1 1 . . 3 Propulsion 13 | . . . . . 4 3 2 . . . . . . . 3 . . . . . . . . . . . . 1 Utility 30 | . 1 . . . 4 2 10 1 . . 2 . 2 . 1 . 1 . 2 . . . . 3 1 . . . Weapon 27 | . 2 . . . 3 5 3 1 . . . . . . 1 . . . 1 . . . . . 1 . . 10 Tool/Special 3 | . . . . . . . 1 . . . . . . . . . . . . . 1 . . . . . . 1 Average Slot Usage (%) 89 | . 99 100 100 100 97 99 68 83 83 84 82 84 85 86 86 86 86 87 88 88 88 88 88 86 93 82 85 86 Engine 2 | . 11 14 14 14 9 1 . . . 7 3 . . . . . . . . . . . . . . . . . Reactor 4 | . . . . . . . 3 6 6 . 3 7 6 6 6 6 6 5 5 5 5 5 10 9 7 4 7 7 Treads 6 | . 14 14 14 14 9 7 7 7 7 7 7 7 6 5 5 6 6 5 5 5 5 5 5 4 4 4 4 3 Wheel 11 | . 14 14 14 14 24 23 9 7 7 7 7 7 6 6 6 6 6 5 5 5 5 5 5 11 17 17 15 12 Device 9 | . 13 14 14 14 6 5 9 11 10 7 7 7 6 6 6 6 6 5 5 5 5 5 12 13 13 7 14 23 Storage 6 | . 14 14 14 14 9 7 1 6 7 7 7 7 6 6 6 6 6 5 5 5 5 5 5 4 4 4 4 4 Processor 7 | . . . . . 3 7 3 3 7 7 7 7 6 6 6 6 6 10 11 11 11 11 10 9 11 13 12 12 Hackware 5 | . . . . . 6 1 . . . . . . 12 11 6 6 11 11 11 11 11 11 10 9 8 8 8 6 Protection 6 | . . . . . 9 7 6 8 4 7 7 7 6 7 13 13 7 11 11 11 11 11 7 4 8 8 4 . Energy Gun 4 | . 27 28 28 17 2 . . . . 7 5 7 6 6 . . . . 5 4 4 . . . . . 2 . Energy Cannon 1 | . . . . . . . . . . . 2 7 6 6 6 6 1 . . . . . 2 . 1 2 . 1 Ballistic Gun 16 | . . . . . 10 27 18 26 23 23 18 14 12 13 19 20 24 22 17 17 18 23 18 18 15 11 7 9 Peak Build Rating 204 | 6 14 12 13 13 41 54 60 58 57 55 65 68 88 90 97 97 102 111 111 110 119 119 132 164 204 169 195 202 Average Rating 90 | 5 12 12 12 12 32 50 47 55 55 54 59 67 85 86 92 96 100 106 109 109 116 119 128 141 184 165 182 188 On Entrance 79 | 6 5 12 12 13 13 38 50 58 56 54 55 65 68 88 80 97 97 102 111 110 110 119 119 131 164 153 146 176 Avg Prop Armor Cover (%) 9 | . 11 14 14 12 8 6 14 8 11 11 8 9 10 8 7 10 10 10 10 10 9 10 9 9 8 6 7 9 Naked Turns 3 | . . . . . . . . . . . . . . . . . . . . . . . . . . . . 3 Heaviest Build 212 | 14 32 30 30 31 109 113 110 119 111 99 122 126 126 128 129 129 129 129 129 125 128 128 156 164 179 157 165 212 Greatest Support 80 | 20 20 16 16 16 36 40 70 70 28 28 70 70 70 70 80 28 28 28 28 28 80 80 80 80 80 80 80 80 Greatest Overweight (x) 5 | 1 1 1 1 1 3 3 3 4 3 3 3 4 4 4 4 4 4 4 4 4 4 4 5 2 2 1 2 3 Average Overweight (x) 2 | . 1 1 1 1 1 2 . 2 3 3 2 3 3 2 2 4 4 4 4 4 3 3 4 1 1 1 1 1 Largest Inventory Capacity 25 | 8 15 15 15 15 25 25 25 25 25 25 25 25 25 25 25 25 25 25 25 25 25 25 25 25 25 25 25 25 Average Capacity 23 | 8 14 15 15 15 22 25 10 19 25 25 25 25 25 25 25 25 25 25 25 25 25 25 25 25 25 25 25 24 Most Carried 25 | 6 11 10 11 13 25 25 25 18 20 21 25 25 25 25 25 25 25 25 25 25 25 25 25 25 25 19 18 25 Average Carried 20 | 5 9 10 10 11 20 24 9 12 18 19 22 23 23 24 24 24 25 24 24 25 24 25 23 24 24 15 14 20 Final Capacity 25 | 8 15 15 15 15 25 25 5 25 25 25 25 25 25 25 25 25 25 25 25 25 25 25 25 25 25 25 25 5 Final Carried 25 | 3 10 10 11 13 25 25 5 17 19 21 23 24 23 25 25 25 25 25 25 25 25 25 25 25 18 19 13 5 Class Distribution -------------------- 28% | Scavenger-Tank 26% | Hacker-Tank 15% | Mutant 11% | Skirmisher 4% | Tank 4% | Derelict-Tank 3% | Scavenger-Gunner Dominant Class ---------------- Mutant | -10/Materials Mutant | -10/Mines Mutant | -10/Exiles Mutant | -9/Mines Mutant | -8/Materials Skirmisher | -7/Factory Derelict-Tank | -7/Waste Derelict-Tank | -7/Factory Scavenger-Tank | -7/Lower Caves Tank | -7/Lower Caves Scavenger-Tank | -7/Data Miner Scavenger-Tank | -6/Proximity Caves Hacker-Tank | -6/Factory Hacker-Tank | -6/Extension Commander-Tank | -6/Cetus Commander-Tank | -6/Archives Scavenger-Tank | -6/Hub_04(d) Scavenger-Tank | -5/Factory Scavenger-Tank | -5/Upper Caves Hacker-Tank | -5/Upper Caves Hacker-Tank | -5/Warlord Hacker-Tank | -4/Proximity Caves Scavenger-Tank | -4/Factory Hacker-Tank | -3/Research Hacker-Tank | -2/Research Scavenger-Tank | -2/Quarantine Scavenger-Gunner | -1/Access Scavenger-Tank | -1/Command Resources | -11 -10 -10 -10 -9 -8 -7 -7 -7 -7 -7 -7 -6 -6 -6 -6 -6 -6 -5 -5 -5 -5 -4 -4 -3 -2 -2 -1 -1 ----------- Run | Yrd Mat Min Exi Min Mat Fac Was Fac Low Low Dat Pro Fac Ext Cet Arc Hub Fac Upp Upp War Pro Fac Res Res Qua Acc Com Matter Collected 11883 | 186 169 . . 48 828 1052 844 642 346 3 341 146 . 657 207 110 264 . 157 57 509 9 335 442 1197 . 1351 1983 Remotely 3082 | . . . . . . . . . . . . . . . . . . . . . 225 . . 125 429 . 956 1347 Salvage Created 16778 | . 1077 24 . 182 965 1251 1223 784 257 . 370 262 . 2170 368 340 119 . 278 . 726 9 481 577 1671 . 1863 1781 Parts 703 | . 68 3 . 9 62 64 27 37 6 . 19 6 . 55 14 13 6 . 18 . 11 . 25 20 70 . 105 65 Haulers Intercepted 12 | . 2 . . . 3 . . 2 . . . . . 1 . . . . . . . . . 4 . . . . Recyclers Shooed 6 | . 2 . . . . . . . . . . . . 2 . . . . . . . . 1 . . . 1 . Parts Field Recycled . | . . . . . . . . . . . . . . . . . . . . . . . . . . . . . Retrieved Matter . | . . . . . . . . . . . . . . . . . . . . . . . . . . . . . Parts Self-Destructed 39 | . . . . . . . . . 5 . . 5 . . . . . . 27 2 . . . . . . . . Prevented 2 | . . . . . . . . . . 2 . . . . . . . . . . . . . . . . . . Parts Restored . | . . . . . . . . . . . . . . . . . . . . . . . . . . . . . Kills | -11 -10 -10 -10 -9 -8 -7 -7 -7 -7 -7 -7 -6 -6 -6 -6 -6 -6 -5 -5 -5 -5 -4 -4 -3 -2 -2 -1 -1 ------- Run | Yrd Mat Min Exi Min Mat Fac Was Fac Low Low Dat Pro Fac Ext Cet Arc Hub Fac Upp Upp War Pro Fac Res Res Qua Acc Com Combat Hostiles Destroyed 223 | . 19 3 . 4 18 16 5 10 5 . 4 5 . 17 5 2 1 . 3 . 13 1 5 2 27 . 29 29 Guns 182 | . 19 3 . 2 16 16 5 10 3 . 3 1 . 10 3 2 1 . 3 . 13 1 5 2 27 . 19 18 Cannons 38 | . . . . 2 2 . . . . . 1 4 . 7 1 . . . . . . . . . . . 10 11 AOE 2 | . . . . . . . . . 2 . . . . . . . . . . . . . . . . . . . Classes Destroyed 24 | . 9 . . . 2 1 1 2 1 . . . . 2 . . . . . . 3 1 . . 1 . . 1 Worker 23 | . 1 . . . 1 3 . 4 . . . . . . . . 2 . . . . . . 2 . . 6 4 Builder 8 | . 2 . . . 1 . . . . . . . . . . . . . . . . . 1 1 . . 3 . Tunneler 3 | . 1 . . . . 1 . 1 . . . . . . . . . . . . . . . . . . . . Hauler 12 | . 2 . . . 3 . . 2 . . . . . 1 . . . . . . . . . 4 . . . . Recycler 23 | . 3 . . 2 2 4 . 1 . . . . . 8 . . . . . . . . 1 . . . . 2 Mechanic 1 | . . . . . . . . . . . . . . 1 . . . . . . . . . . . . . . Operator 6 | . 1 . . . . 1 . . . . . . . . . 4 . . . . . . . . . . . . Drone 1 | . . . . . . . . . . . . . . . . . . . . . . 1 . . . . . . Watcher 9 | . 3 . . . 1 2 . 1 . . . . . . . . . . . . . . . . . . 1 1 Swarmer 37 | . 3 3 . 4 8 . . . 1 . . . . 1 . . . . . . 1 . . . 8 . 5 3 Saboteur 2 | . . . . . . . . . . . . . . . . . . . . . 2 . . . . . . . Grunt 67 | . 16 . . . 2 8 . 5 3 . . 3 . 4 2 . . . 2 . 3 . . . 7 . 2 10 Brawler 1 | . . . . . . . . 1 . . . . . . . . . . . . . . . . . . . . Duelist 4 | . . . . . . . . 1 . . . 1 . 1 . . . . . . . . . . . . . 1 Sentry 26 | . . . . . 6 3 . 2 1 . . . . 7 . 2 . . . . . . . 1 1 . 1 2 Hunter 22 | . . . . . 2 . . . . . . . . 2 . . 1 . 1 . . . 1 . 2 . 6 7 Programmer 29 | . . . . . . 5 . 1 . . . 1 . . . . . . . . 3 . 4 . 1 . 11 3 Heavy 1 | . . . . . . . . . . . . . . . . . . . . . . . . . . . . 1 Behemoth 2 | . . . . . . . . . . . . . . 1 . . . . . . 1 . . . . . . . Compactor 5 | . . . . . . . 5 . . . . . . . . . . . . . . . . . . . . . Cetus Guard 3 | . . . . . . . . . . . . . . . 3 . . . . . . . . . . . . . M Guard 1 | . . . . . . . . . . . . . . . . . . . . . . . . . . . . 1 Enhanced Grunt 5 | . . . . . . . . . . . 4 . . . . . . . 1 . . . . . . . . . Tracker 2 | . . . . . . . . . . . . . . . . . . . . . . . . . . . 2 . Combat Programmer 3 | . . . . . . . . . . . . . . . . . . . . . . . . . . . 2 1 Striker 4 | . . . . . . . . . . . . . . . . . . . . . 1 . . 1 2 . . . Executioner 6 | . . . . . . . . . . . . . . . . . . . . . . . . . 6 . . . Samaritan 1 | . . . . . . . . . 1 . . . . . . . . . . . . . . . . . . . Thug 3 | . . . . . . . . . . . . . . 1 . . . . . . 2 . . . . . . . Savage 1 | . . . . . . . . . . . . . . . 1 . . . . . . . . . . . . . Guerrilla 1 | . . . . . . . . . . . . . . . . 1 . . . . . . . . . . . . Mutant 1 | . . . . . . . . . . . . . . . . . . . . . 1 . . . . . . . Best Kill Streak 11 | . 6 3 . 5 5 6 3 2 3 . 1 4 . 3 2 4 1 . 2 . 9 1 3 2 11 . 7 6 Combat Bots Only 11 | . 4 3 . 4 4 3 3 2 3 . 1 4 . 3 2 2 1 . 2 . 9 1 2 1 11 . 4 4 Max Kills in Single Turn 3 | . 1 1 . 1 2 2 1 2 3 . 1 1 . 2 2 1 1 . 1 . 2 1 2 2 2 . 2 2 Gunslinging 1 | . . . . . 1 . . . . . . . . . . . . . . . 1 . . . 1 . 1 . Exploded 2 | . . . . . . . . . 2 . . . . . . . . . . . . . . . . . . . Melee . | . . . . . . . . . . . . . . . . . . . . . . . . . . . . . Uniques/NPCs Destroyed 1 | . . . . . . . . . . . 1 . . . . . . . . . . . . . . . . . Data Miner (-7/Data Miner) Combat | -11 -10 -10 -10 -9 -8 -7 -7 -7 -7 -7 -7 -6 -6 -6 -6 -6 -6 -5 -5 -5 -5 -4 -4 -3 -2 -2 -1 -1 -------- Run | Yrd Mat Min Exi Min Mat Fac Was Fac Low Low Dat Pro Fac Ext Cet Arc Hub Fac Upp Upp War Pro Fac Res Res Qua Acc Com Hostile Shots Fired 1581 | . 68 11 . 40 62 78 6 147 37 . 20 24 . 143 17 6 30 . 7 . 136 . 17 . 309 20 214 189 Missed 414 | . 16 4 . 7 12 25 1 48 14 . 3 8 . 50 8 2 13 . 2 . 39 . 5 . 69 4 43 41 Intercepted 7 | . . . . . . . . . . . . . . . . . . . . . . . . . . . . 7 Hits 1167 | . 52 7 . 33 50 53 5 99 23 . 17 16 . 93 9 4 17 . 5 . 97 . 12 . 240 16 171 148 Melee 23 | . . . . . . . 5 11 . . . . . . . . . . . . . . . . 7 . . . Projectile 1144 | . 52 7 . 33 50 53 . 88 23 . 17 16 . 93 9 4 17 . 5 . 97 . 12 . 233 16 171 148 AOE 19 | . . . . . . . . . . . . . . . . . . . . . . . . . . . . 19 Critical Strikes 49 | . . . . . 2 2 2 2 . . . 1 . 1 2 1 . . 1 . . . . . 8 1 12 14 Actively Blocked 18 | . . . . . . . . . . . . . . . . . . . . . . . . . . . 6 12 Part Disruptions 3 | . . . . . . . . . . . . . . . . . . . . . . . 1 . . . . 2 Damage Taken 22193 | . 621 51 . 256 674 642 229 1370 221 . 791 298 . 972 200 98 241 . 89 162 610 . 157 42 5309 428 3773 4959 Core 3332 | . 164 24 . 44 54 41 50 132 22 . 45 14 . 70 58 28 40 . 23 . 85 . 3 . 727 102 147 1459 Absorbed by Shields 2202 | . . . . . . . . . . . . . . 216 102 . . . . . . . 60 15 1391 . . 418 Reduced by Siege Mode 477 | . . . . . . . 38 9 . . 72 14 . 8 . . . . . . . . 8 . 149 . 130 49 Redirected to Shielding 231 | . . . . . . . . . . . . . . . . . . . 5 . 17 . . . 209 . . . Ignored by Resistances 408 | . . . . . . . . . . . . . . . . . . . . . . . . . . . . 408 Regen/Repaired (Parts) 1799 | . . . . . 153 75 1 138 . . . . . 203 . . . . . . 54 . . . 91 . 1084 . Core Remaining (%) 73 | 100 . . . 7 90 . . . . . . 56 . . . . 76 . . . . 89 99 100 . 42 . . Volleys Fired 775 | . 80 7 . 14 72 45 44 56 12 2 22 10 2 61 12 19 12 . 4 2 25 3 17 25 53 1 73 102 Largest 4 | . 2 2 . 2 2 4 4 4 4 1 4 4 1 4 4 4 4 . 4 1 4 4 4 4 4 1 4 4 Hottest 234 | . 130 130 . 130 98 100 100 139 105 30 191 206 105 175 193 116 116 . 193 30 200 135 135 195 205 110 234 224 Shots Fired 2329 | . 150 14 . 28 142 169 168 193 41 2 82 28 2 221 40 76 42 . 16 2 95 12 39 73 178 1 236 279 Gun 1945 | . 150 14 . 21 119 169 168 192 39 . 73 18 . 160 29 57 40 . 16 . 94 12 31 63 176 . 149 155 Cannon 375 | . . . . 7 23 . . 1 . . 9 7 2 61 11 19 2 . . . 1 . 8 10 2 1 87 124 Launcher 9 | . . . . . . . . . 2 2 . 3 . . . . . . . 2 . . . . . . . . Special . | . . . . . . . . . . . . . . . . . . . . . . . . . . . . . Kinetic 1853 | . . . . 7 136 169 168 193 39 . 57 14 . 122 29 57 40 . 12 . 93 12 31 63 168 . 194 249 Thermal 467 | . 150 14 . 21 6 . . . . . 25 11 2 99 11 19 2 . 4 . 2 . 8 10 10 1 42 30 Explosive 9 | . . . . . . . . . 2 2 . 3 . . . . . . . 2 . . . . . . . . Electromagnetic . | . . . . . . . . . . . . . . . . . . . . . . . . . . . . . Robot Hit Streak 31 | . 16 2 . 4 20 26 17 9 10 . 18 11 . 14 6 7 7 . 15 . 12 3 5 15 31 . 19 14 Robot Miss Streak 8 | . 5 3 . 6 4 3 3 5 3 . 4 1 . 3 2 7 1 . 1 . 5 6 2 3 4 . 4 8 Penetration Max 2 | . . . . . . . . . . . . . . . 1 1 1 . . . 2 . 1 1 1 . 1 2 Secondary Targets 25 | . . . . 1 2 2 2 1 . . . . . . . . . . . . 2 . 1 . 12 . 1 1 Max Gunslinging Chain 1 | . . . . 1 1 1 1 1 . . . . . . . . . . . . 1 . 1 . 1 . 1 1 Shots Hit Robots 1481 | . 89 6 . 9 92 112 142 101 25 . 59 16 . 148 23 39 27 . 14 . 54 4 19 36 142 . 156 168 Core Hits 680 | . 46 3 . 6 37 50 30 44 15 . 33 11 . 58 14 15 7 . 13 . 23 1 16 12 63 . 79 104 Critical Kills 30 | . . . . . 1 . . . . . . . . . 2 1 . . 1 . 3 . 1 4 5 . 9 3 Critical Parts Destroyed 47 | . . . . . . 2 1 3 . . 1 . . 1 . 2 1 . . . 6 1 5 3 10 . 7 4 Critical Strikes 93 | . 2 . . . 2 2 1 3 . . 2 . . 3 2 3 2 . 1 . 10 1 6 7 15 . 17 14 Burn 5 | . 2 . . . 1 . . . . . 1 . . 1 . . . . . . . . . . . . . . Meltdown 2 | . . . . . . . . . . . . . . . 1 1 . . . . . . . . . . . . Destroy 77 | . . . . . 1 2 1 1 . . 1 . . 2 1 2 2 . 1 . 10 1 6 7 15 . 16 8 Blast 7 | . . . . . . . . . . . . . . . . . . . . . . . . . . . 1 6 Smash 2 | . . . . . . . . 2 . . . . . . . . . . . . . . . . . . . . Melee Attacks 34 | . . . . . 3 8 . 2 . . 19 . 1 1 . . . . . . . . . . . . . . Impact 23 | . . . . . . . . 2 . . 19 . 1 1 . . . . . . . . . . . . . . Slashing 11 | . . . . . 3 8 . . . . . . . . . . . . . . . . . . . . . . Piercing . | . . . . . . . . . . . . . . . . . . . . . . . . . . . . . Sneak Attacks 6 | . . . . . . 4 . 1 . . 1 . . . . . . . . . . . . . . . . . Combat Hostiles . | . . . . . . . . . . . . . . . . . . . . . . . . . . . . . Follow-up Attacks . | . . . . . . . . . . . . . . . . . . . . . . . . . . . . . Damage Inflicted 39136 | . 1397 172 . 176 1608 2302 2503 2040 542 . 953 568 . 3766 761 1098 514 . 423 . 1987 110 878 990 4490 . 5344 6514 Guns 29646 | . 1397 99 . 92 1286 1961 2503 1908 393 . 820 226 . 2069 475 677 514 . 423 . 1987 110 847 990 4490 . 3591 2788 Cannons 7928 | . . . . 84 322 . . . . . 85 262 . 1697 286 421 . . . . . . . . . . 1727 3044 Explosions 1015 | . . 73 . . . . . . 149 . . 80 . . . . . . . . . . 31 . . . . 682 Melee 514 | . . . . . . 341 . 125 . . 48 . . . . . . . . . . . . . . . . . Ramming 33 | . . . . . . . . 7 . . . . . . . . . . . . . . . . . . 26 . Kinetic 31595 | . . . . 84 1559 1961 2503 1908 393 . 650 146 . 1518 475 677 514 . 251 . 1987 110 847 990 4304 . 4451 6267 Thermal 6734 | . 1397 172 . 92 49 . . . . . 255 342 . 2248 286 421 . . 172 . . . . . 186 . 867 247 Explosive 229 | . . . . . . . . . 149 . . 80 . . . . . . . . . . . . . . . . Electromagnetic 31 | . . . . . . . . . . . . . . . . . . . . . . . 31 . . . . . Impact 173 | . . . . . . . . 125 . . 48 . . . . . . . . . . . . . . . . . Slashing 341 | . . . . . . 341 . . . . . . . . . . . . . . . . . . . . . . Piercing . | . . . . . . . . . . . . . . . . . . . . . . . . . . . . . Highest Corruption 38 | . . . . . 2 1 1 3 3 . . 1 . . . . . . . 2 14 1 . . . . 17 38 Average Corruption 5 | . . . . . 2 1 1 2 2 . . 1 . . . . . . . 2 5 1 . . . . 9 17 Corruption Purged 3 | . . . . . . . . . 3 . . . . . . . . . . . . . . . . . . . Corruption Blocked . | . . . . . . . . . . . . . . . . . . . . . . . . . . . . . Effects 168 | . . . . . 14 2 10 23 9 . . 2 . . . . . . . 9 2 2 . . . . 29 66 Message Errors 46 | . . . . . 3 1 6 8 2 . . 1 . . . . . . . 3 . . . . . . 9 13 Matter Fused 37 | . . . . . 3 . 1 5 2 . . . . . . . . . . 1 1 1 . . . . 8 15 Heat Flow Errors 14 | . . . . . 1 . . 2 1 . . . . . . . . . . 1 . . . . . . . 9 Energy Discharges 21 | . . . . . 1 . 2 4 3 . . . . . . . . . . 2 . . . . . . 2 7 Parts Rejected 2 | . . . . . 2 . . . . . . . . . . . . . . . . . . . . . . . Parts Fused 2 | . . . . . 1 . . . . . . . . . . . . . . . . . . . . . . 1 Data Loss (minor) 17 | . . . . . 1 . . 3 . . . 1 . . . . . . . . . 1 . . . . 3 8 Data Loss (major) 7 | . . . . . 1 1 . . . . . . . . . . . . . 2 1 . . . . . 2 . Misfires 5 | . . . . . 1 . . . . . . . . . . . . . . . . . . . . . 2 2 Misdirections 1 | . . . . . . . . . . . . . . . . . . . . . . . . . . . . 1 Weapon Failures 16 | . . . . . . . 1 1 1 . . . . . . . . . . . . . . . . . 3 10 Overload Shots 7 | . . . . . . . . . . . . . 2 . 5 . . . . . . . . . . . . . Effects 2 | . . . . . . . . . . . . . . . 2 . . . . . . . . . . . . . Energy Bleed 1 | . . . . . . . . . . . . . . . 1 . . . . . . . . . . . . . Short Circuit 1 | . . . . . . . . . . . . . . . 1 . . . . . . . . . . . . . Overflow Damage 490 | . . 15 . 12 . 146 . 125 . . . . . 51 3 47 . . . . . . . . . . 70 21 Projectiles 204 | . . . . 12 . . . . . . . . . 51 3 47 . . . . . . . . . . 70 21 Explosions 15 | . . 15 . . . . . . . . . . . . . . . . . . . . . . . . . . Melee 271 | . . . . . . 146 . 125 . . . . . . . . . . . . . . . . . . . . Knockbacks 34 | . . . . . . . . 1 . . . . . . . . . . . . . . . . . . 19 14 Impact 1 | . . . . . . . . 1 . . . . . . . . . . . . . . . . . . . . Kinetic 32 | . . . . . . . . . . . . . . . . . . . . . . . . . . . 18 14 Secondary 1 | . . . . . . . . . . . . . . . . . . . . . . . . . . . 1 . Self-Inflicted Damage 20 | . . . . . . . . 3 . . . . . . . . . . . . . . 17 . . . . . Shots 1 | . . . . . . . . . . . . . . . . . . . . . . . 1 . . . . . Rammed 2 | . . . . . . . . 1 . . . . . . . . . . . . . . . . . . 1 . Targets Rammed 3 | . . . . . . . . 1 . . . . . . . . . . . . . . . . . . 2 . Kicked . | . . . . . . . . . . . . . . . . . . . . . . . . . . . . . Crushed 1 | . . . . . . . . . . . . . . . . . . . . . . . . . . . 1 . Highest Temperature 324 | . 243 189 . 189 265 324 108 194 132 . 144 106 185 102 132 3 . . 78 106 54 67 24 57 66 . 189 219 Average Temperature 58 | . 79 96 . 112 33 70 53 48 80 . 72 45 67 34 52 3 . . 32 62 28 33 10 31 26 . 41 58 Received Heat Transfer 1824 | . 303 . . . 162 207 . 369 60 . . 144 . 226 18 18 24 . 27 . 18 . . . 86 63 54 45 Siege Activations 53 | . . . . . . . 1 3 . . 3 2 . 4 1 . . . 2 . 9 . 2 . 7 . 10 9 Total Turns 825 | . . . . . . . 28 22 . . 43 24 . 46 1 . . . 6 . 165 . 27 . 121 . 244 98 Longest Duration 66 | . . . . . . . 28 12 . . 19 15 . 27 1 . . . 5 . 55 . 20 . 43 . 66 23 Martial Activations . | . . . . . . . . . . . . . . . . . . . . . . . . . . . . . Shielding Activations . | . . . . . . . . . . . . . . . . . . . . . . . . . . . . . Robots Disrupted . | . . . . . . . . . . . . . . . . . . . . . . . . . . . . . Combat Hostiles . | . . . . . . . . . . . . . . . . . . . . . . . . . . . . . Robots Corrupted 1 | . . . . . . . . 1 . . . . . . . . . . . . . . . . . . . . Combat Hostiles . | . . . . . . . . . . . . . . . . . . . . . . . . . . . . . Parts Fried 2 | . . . . . . . . 1 . . . . . . . . . . . . 1 . . . . . . . Impact Corruptions 5 | . . . . . . . . 4 . . . . . . . . . . . . . . . . . . 1 . Robots Melted 2 | . . . . . . . . . . . . . . . 1 1 . . . . . . . . . . . . Combat Hostiles 1 | . . . . . . . . . . . . . . . 1 . . . . . . . . . . . . . Parts Melted 36 | . 11 . . . 1 . . . . . 1 3 . 14 1 2 . . . . 1 . . . 1 . 1 . Heat Transferred 11660 | . 3552 322 . 222 185 . . . . . 814 498 . 3611 360 600 . . 275 . . . . . 222 . 999 . Parts Sabotaged . | . . . . . . . . . . . . . . . . . . . . . . . . . . . . . Parts Stolen . | . . . . . . . . . . . . . . . . . . . . . . . . . . . . . Parts Stripped . | . . . . . . . . . . . . . . . . . . . . . . . . . . . . . Power Chain Reactions . | . . . . . . . . . . . . . . . . . . . . . . . . . . . . . Alert | -11 -10 -10 -10 -9 -8 -7 -7 -7 -7 -7 -7 -6 -6 -6 -6 -6 -6 -5 -5 -5 -5 -4 -4 -3 -2 -2 -1 -1 ------- Run | Yrd Mat Min Exi Min Mat Fac Was Fac Low Low Dat Pro Fac Ext Cet Arc Hub Fac Upp Upp War Pro Fac Res Res Qua Acc Com Maximum Alert Level 5 | . . . . . 1 1 . 3 . . . . . 2 3 2 2 1 . . . . . . 2 5 4 4 Low Security (%) 61 | 100 100 100 . 100 80 95 100 3 . . . . 100 27 . . 41 88 . . . . 100 100 82 . . . Level 1 10 | . . . . . 19 4 . 8 . . . . . 50 4 24 32 11 . . . . . . 6 . . . Level 2 8 | . . . . . . . . 20 . . . . . 21 93 75 25 . . . . . . . 10 . . . Level 3 10 | . . . . . . . . 67 . . . . . . 2 . . . . . . . . . . . 16 54 Level 4 7 | . . . . . . . . . . . . . . . . . . . . . . . . . . . 83 45 Level 5 . | . . . . . . . . . . . . . . . . . . . . . . . . . . . . . High Security . | . . . . . . . . . . . . . . . . . . . . . . . . . . . . . Max Security . | . . . . . . . . . . . . . . . . . . . . . . . . . . 99 . . Peak Influence 1603 | . 169 163 . 121 279 240 82 1072 . . . . 11 683 708 443 454 206 . . . . 150 51 462 1603 1503 1409 Initial 1100 | . . 36 . . 33 125 82 . . . . . 7 . 377 253 144 206 . . . . 150 51 . 249 1100 945 Average 317 | . 93 107 . 90 78 57 11 774 . . . . . 287 574 397 250 172 . . . . 58 10 90 1592 1276 1121 Influence Increases 10942 | . 635 147 . 146 599 607 10 1858 110 . 20 120 12 1383 491 290 532 16 320 60 320 5 379 188 770 3 918 1003 Destroy 0b10 Robot/C 5560 | . 380 60 . 80 360 320 . 720 100 . 20 100 . 680 220 80 180 . 140 20 260 . 100 40 540 . 580 580 Destroy 0b10 Robot/NC 490 | . 65 . . 10 40 55 . 70 . . . . . 70 10 25 10 . . . . 5 10 35 . . 50 35 Destroy Leader 1158 | . 100 10 . 10 108 94 . 210 10 . . 20 . 84 10 . 60 . 20 10 . . 20 18 110 . 142 122 Allied During Kill 1808 | . . . . . . . . 631 . . . . . 435 227 105 220 . 160 30 . . . . . . . . Successful Hack 307 | . 24 . . . 24 88 . 45 . . . . . 29 . . 16 16 . . . . 12 . 15 . 20 18 Select Force Hacks 60 | . 30 . . . 30 . . . . . . . . . . . . . . . . . . . . . . . Disable Machine 420 | . 15 60 . 45 30 15 . 45 . . . . . 15 15 75 30 . . . . . 45 30 . . . . Anti-Garrison Action 50 | . . . . . . . . . . . . . . . . . . . . . . . . . . . . 50 Destroy Structure 564 | . 6 17 . 1 7 5 10 107 . . . . 12 25 9 5 16 . . . . . 42 20 45 3 66 168 Advance Influence 150 | . . . . . . . . . . . . . . . . . . . . . . . 150 . . . . . Lose Combat Pursuer 375 | . 15 . . . . 30 . 30 . . . . . 45 . . . . . . 60 . . 45 60 . 60 30 Influence Decreases 11210 | . 542 147 93 60 409 646 247 786 899 253 50 108 22 710 532 511 523 296 283 239 121 204 280 287 326 195 1182 1259 Entered New Map 3867 | . . 57 93 . 53 151 155 . 397 55 30 . 5 2 298 381 269 216 53 35 . 199 . 48 . 195 642 533 Time Decay 6301 | . 532 90 . 50 346 485 90 526 482 198 20 108 17 528 214 80 254 80 230 204 121 5 280 239 226 . 410 486 Lost Part 562 | . . . . 10 10 . 2 20 20 . . . . 20 . 10 . . . . . . . . 100 . 130 240 Lost Ally 480 | . 10 . . . . 10 . 240 . . . . . 160 20 40 . . . . . . . . . . . . Squads Dispatched 78 | . 5 . . . 2 8 . 20 . . . . . 4 1 . 4 . . . . . 3 5 2 6 8 10 Investigation 17 | . 3 . . . 1 1 . 3 . . . . . 3 1 . 2 . . . . . . 1 . . . 2 Extermination 17 | . . . . . . 5 . 4 . . . . . . . . 1 . . . . . 1 . . . 3 3 Reinforcement 22 | . 2 . . . 1 2 . 5 . . . . . 1 . . 1 . . . . . 2 3 . . 2 3 Assault 10 | . . . . . . . . 2 . . . . . . . . . . . . . . . . . 6 . 2 Garrison 8 | . . . . . . . . 6 . . . . . . . . . . . . . . . . . . 2 . Intercept 4 | . . . . . . . . . . . . . . . . . . . . . . . . 1 2 . 1 . Searches Triggered . | . . . . . . . . . . . . . . . . . . . . . . . . . . . . . Construction Impeded 3 | . . . . . . . . . . . . . . 1 . . . . . . . . 1 . . . 1 . Haulers Reinforced 5 | . . . . . . . . 3 . . . . . . . . . . . . . . . 2 . . . . Active Scanning Responses . | . . . . . . . . . . . . . . . . . . . . . . . . . . . . . Cargo Convoy Interrupts . | . . . . . . . . . . . . . . . . . . . . . . . . . . . . . Stealth | -11 -10 -10 -10 -9 -8 -7 -7 -7 -7 -7 -7 -6 -6 -6 -6 -6 -6 -5 -5 -5 -5 -4 -4 -3 -2 -2 -1 -1 --------- Run | Yrd Mat Min Exi Min Mat Fac Was Fac Low Low Dat Pro Fac Ext Cet Arc Hub Fac Upp Upp War Pro Fac Res Res Qua Acc Com Distress Signals 20 | . . . . . 3 . . 2 . . . . . 1 2 . . . . . 1 . . 5 2 1 1 2 Communications Jammed 33 | . . . . . . . . . . . . . . . . . . . . . . . . . . . 24 9 Distress Signals 26 | . . . . . . . . . . . . . . . . . . . . . . . . . . . 21 5 Times Spotted 438 | . 28 3 . 4 34 26 6 39 6 . 4 5 1 28 10 13 7 . 5 . 71 2 6 6 47 5 39 43 Peak Tracking Total 11 | . 4 3 . 4 4 4 2 5 3 . 2 4 1 5 5 2 1 . 5 . 10 1 2 5 11 4 5 7 Tactical Retreats 18 | . 1 . . . . 1 . 1 . . . . . 3 . . . . . . 2 . . 2 4 . 3 1 Traps | -11 -10 -10 -10 -9 -8 -7 -7 -7 -7 -7 -7 -6 -6 -6 -6 -6 -6 -5 -5 -5 -5 -4 -4 -3 -2 -2 -1 -1 ------- Run | Yrd Mat Min Exi Min Mat Fac Was Fac Low Low Dat Pro Fac Ext Cet Arc Hub Fac Upp Upp War Pro Fac Res Res Qua Acc Com Traps Triggered 12 | . 2 . . . 1 2 . . . . . . . 4 . . . . . . . . 1 1 . . . 1 Indirectly . | . . . . . . . . . . . . . . . . . . . . . . . . . . . . . Trap Hack Attempts . | . . . . . . . . . . . . . . . . . . . . . . . . . . . . . Triggered . | . . . . . . . . . . . . . . . . . . . . . . . . . . . . . Disarmed 3 | . . . . . . . . . . . . . . 3 . . . . . . . . . . . . . . Reprogrammed . | . . . . . . . . . . . . . . . . . . . . . . . . . . . . . Reused . | . . . . . . . . . . . . . . . . . . . . . . . . . . . . . Traps Extracted . | . . . . . . . . . . . . . . . . . . . . . . . . . . . . . Installed . | . . . . . . . . . . . . . . . . . . . . . . . . . . . . . Triggered . | . . . . . . . . . . . . . . . . . . . . . . . . . . . . . Machines | -11 -10 -10 -10 -9 -8 -7 -7 -7 -7 -7 -7 -6 -6 -6 -6 -6 -6 -5 -5 -5 -5 -4 -4 -3 -2 -2 -1 -1 ---------- Run | Yrd Mat Min Exi Min Mat Fac Was Fac Low Low Dat Pro Fac Ext Cet Arc Hub Fac Upp Upp War Pro Fac Res Res Qua Acc Com Machines Disabled 29 | . 1 4 . 3 2 1 . 3 . . . . . 1 1 5 2 . . . . . 3 2 . . . 1 Max in Single Turn 4 | . 1 4 . 1 1 1 . . . . . . . . 1 1 1 . . . . . 3 1 . . . 1 Garrison Access 8 | . . . . . 1 2 . . . . . . . . . . . . . . . . . 2 3 . . . Phase Generator 1 | . . . . . . . . . . . . . . . . . . . . . . . . . . . . 1 Machines Repaired . | . . . . . . . . . . . . . . . . . . . . . . . . . . . . . Machines Dismantled 1 | . . . . . . . . . . . . . . . . . . . . . . . . . . . . 1 Machines Sabotaged . | . . . . . . . . . . . . . . . . . . . . . . . . . . . . . Overloaded Fab Kills . | . . . . . . . . . . . . . . . . . . . . . . . . . . . . . Hacking | -11 -10 -10 -10 -9 -8 -7 -7 -7 -7 -7 -7 -6 -6 -6 -6 -6 -6 -5 -5 -5 -5 -4 -4 -3 -2 -2 -1 -1 --------- Run | Yrd Mat Min Exi Min Mat Fac Was Fac Low Low Dat Pro Fac Ext Cet Arc Hub Fac Upp Upp War Pro Fac Res Res Qua Acc Com Machines Accessed 97 | . 10 . 2 . 12 19 . 10 1 2 4 . 1 12 1 . 5 2 . . 1 . 2 5 2 . 4 2 Terminals 53 | . 7 . . . 6 9 . 3 . 1 . . 1 11 1 . 5 2 . . . . 1 1 . . 3 2 Fabricators 6 | . . . . . . 2 . 2 . . . . . . . . . . . . . . 1 1 . . . . Repair Stations 12 | . 1 . . . 2 4 . 2 . . . . . 1 . . . . . . . . . 1 . . 1 . Recycling Units 3 | . 2 . . . 1 . . . . . . . . . . . . . . . . . . . . . . . Scanalyzers 6 | . . . . . 2 1 . 2 . . . . . . . . . . . . . . . . 1 . . . Garrison Access 8 | . . . . . 1 3 . 1 . . . . . . . . . . . . . . . 2 1 . . . Total Hacks 259 | . 27 . 2 . 38 42 . 29 1 2 26 . 7 32 2 . 9 7 . . 1 . 2 13 3 . 10 6 Successful 148 | . 13 . 2 . 29 14 . 12 1 2 26 . 4 16 . . 7 3 . . 1 . 2 5 2 . 7 2 Failed 111 | . 14 . . . 9 28 . 17 . . . . 3 16 2 . 2 4 . . . . . 8 1 . 3 4 Catastrophic 17 | . 2 . . . . 5 . 4 . . . . . 3 1 . . . . . . . . 2 . . . . Database Lockouts . | . . . . . . . . . . . . . . . . . . . . . . . . . . . . . Manual 95 | . 22 . 1 . 13 10 . 6 . . . . 6 16 1 . 7 7 . . 1 . . 4 . . . 1 Terminals 131 | . 23 . . . 13 16 . 7 . 1 . . 7 27 2 . 9 7 . . . . 1 6 . . 6 6 Fabricators 13 | . . . . . . 4 . 6 . . . . . . . . . . . . . . 1 2 . . . . Repair Stations 37 | . 2 . . . 8 9 . 7 . . . . . 5 . . . . . . . . . 2 . . 4 . Recycling Units 5 | . 2 . . . 3 . . . . . . . . . . . . . . . . . . . . . . . Scanalyzers 26 | . . . . . 13 5 . 6 . . . . . . . . . . . . . . . . 2 . . . Garrison Access 16 | . . . . . 1 8 . 3 . . . . . . . . . . . . . . . 3 1 . . . Terminal Hacks 64 | . 3 . 2 . 4 . . . 1 2 26 . 3 10 . . 3 1 . . 1 . 1 2 . . 3 2 Record 16 | . . . 1 . . . . . . 1 11 . . 1 . . . . . . 1 . . 1 . . . . Part Schematic 11 | . 1 . . . . . . . . . 8 . . 1 . . . . . . . . . 1 . . . . Robot Schematic 4 | . . . . . . . . . . . 4 . . . . . . . . . . . . . . . . . Prototype ID Bank 8 | . 2 . . . 1 . . . . . 3 . 1 . . . 1 . . . . . . . . . . . Open Door 10 | . . . . . . . . . 1 1 . . . 5 . . . . . . . . . . . . 3 . Level Access Points 3 | . . . . . 1 . . . . . . . . . . . 1 . . . . . 1 . . . . . Branch Access Points 2 | . . . . . . . . . . . . . 1 . . . . 1 . . . . . . . . . . Emergency Access Points 1 | . . . . . . . . . . . . . . . . . . . . . . . . . . . . 1 Alert Level 6 | . . . . . 2 . . . . . . . 1 1 . . 1 . . . . . . . . . . 1 Disarm Traps 1 | . . . . . . . . . . . . . . 1 . . . . . . . . . . . . . . Zone Layout 1 | . . . . . . . . . . . . . . 1 . . . . . . . . . . . . . . Proto ID Catalog 1 | . . . 1 . . . . . . . . . . . . . . . . . . . . . . . . . Fabricator Hacks 7 | . . . . . . 2 . 3 . . . . . . . . . . . . . . 1 1 . . . . Network Status 3 | . . . . . . 1 . 1 . . . . . . . . . . . . . . 1 . . . . . Load Schematic 4 | . . . . . . 1 . 2 . . . . . . . . . . . . . . . 1 . . . . Repair Station Hacks 24 | . 1 . . . 8 6 . 4 . . . . . 1 . . . . . . . . . . . . 4 . Scan Component 14 | . 1 . . . 4 4 . 2 . . . . . 1 . . . . . . . . . . . . 2 . Repair 10 | . . . . . 4 2 . 2 . . . . . . . . . . . . . . . . . . 2 . Recycling Unit Hacks 1 | . 1 . . . . . . . . . . . . . . . . . . . . . . . . . . . Retrieve Components 1 | . 1 . . . . . . . . . . . . . . . . . . . . . . . . . . . Scanalyzer 19 | . . . . . 12 2 . 4 . . . . . . . . . . . . . . . . 1 . . . Insert Component 5 | . . . . . 4 . . 1 . . . . . . . . . . . . . . . . . . . . Analyze 5 | . . . . . 4 . . 1 . . . . . . . . . . . . . . . . . . . . Retrieve Study 9 | . . . . . 4 2 . 2 . . . . . . . . . . . . . . . . 1 . . . Garrison Access Hacks 6 | . . . . . 1 2 . . . . . . . . . . . . . . . . . 2 1 . . . Seal Access 6 | . . . . . 1 2 . . . . . . . . . . . . . . . . . 2 1 . . . Unauthorized Hacks 27 | . 8 . . . 4 2 . 1 . . . . 1 5 . . 4 2 . . . . . . . . . . Terminals 24 | . 7 . . . 3 2 . 1 . . . . 1 4 . . 4 2 . . . . . . . . . . Assimilate 4 | . 2 . . . . 2 . . . . . . . . . . . . . . . . . . . . . . Botnet 18 | . 5 . . . 3 . . 1 . . . . 1 4 . . 2 2 . . . . . . . . . . Sabotage 2 | . . . . . . . . . . . . . . . . . 2 . . . . . . . . . . . Fabricators . | . . . . . . . . . . . . . . . . . . . . . . . . . . . . . Repair Stations 1 | . . . . . . . . . . . . . . 1 . . . . . . . . . . . . . . Patch 1 | . . . . . . . . . . . . . . 1 . . . . . . . . . . . . . . Recycling Units 2 | . 1 . . . 1 . . . . . . . . . . . . . . . . . . . . . . . Tunnel 2 | . 1 . . . 1 . . . . . . . . . . . . . . . . . . . . . . . Scanalyzers . | . . . . . . . . . . . . . . . . . . . . . . . . . . . . . Garrison Access . | . . . . . . . . . . . . . . . . . . . . . . . . . . . . . Data Cores Recovered 1 | . . . . . . . . . . . . . . 1 . . . . . . . . . . . . . . Used . | . . . . . . . . . . . . . . . . . . . . . . . . . . . . . Hacking Detections 64 | . 8 . . . 7 18 . 8 . . . . 1 8 2 . 2 2 . . . . . 3 1 . 2 2 Full Trace Events 6 | . . . . . 1 1 . 3 . . . . . . 1 . . . . . . . . . . . . . Feedback Events 2 | . . . . . . . . 2 . . . . . . . . . . . . . . . . . . . . Corruption 2 | . . . . . . . . 2 . . . . . . . . . . . . . . . . . . . . Feedback Blocked . | . . . . . . . . . . . . . . . . . . . . . . . . . . . . . Robot Schematics Acquired 4 | . . . . . . . . . . . 4 . . . . . . . . . . . . . . . . . Robots Built . | . . . . . . . . . . . . . . . . . . . . . . . . . . . . . Authchips . | . . . . . . . . . . . . . . . . . . . . . . . . . . . . . Time . | . . . . . . . . . . . . . . . . . . . . . . . . . . . . . Total Robot Build Rating . | . . . . . . . . . . . . . . . . . . . . . . . . . . . . . Part Schematics Acquired 15 | . 1 . . . 4 . . . . . 8 . . 1 . . . . . . . . . 1 . . . . Parts Built . | . . . . . . . . . . . . . . . . . . . . . . . . . . . . . Authchips . | . . . . . . . . . . . . . . . . . . . . . . . . . . . . . Time . | . . . . . . . . . . . . . . . . . . . . . . . . . . . . . Total Part Build Rating . | . . . . . . . . . . . . . . . . . . . . . . . . . . . . . Part Studies Acquired 9 | . . . . . 4 2 . 2 . . . . . . . . . . . . . . . . 1 . . . Parts Repaired 10 | . . . . . 4 2 . 2 . . . . . . . . . . . . . . . . . . 2 . Time 369 | . . . . . 149 76 . 94 . . . . . . . . . . . . . . . . . . 50 . Parts Recycled . | . . . . . . . . . . . . . . . . . . . . . . . . . . . . . Recycled Matter . | . . . . . . . . . . . . . . . . . . . . . . . . . . . . . Retrieved Matter . | . . . . . . . . . . . . . . . . . . . . . . . . . . . . . Retrieved Components 9 | . 9 . . . . . . . . . . . . . . . . . . . . . . . . . . . Parts Scanalyzed 5 | . . . . . 4 . . 1 . . . . . . . . . . . . . . . . . . . . Part Schematics Acquired 4 | . . . . . 4 . . . . . . . . . . . . . . . . . . . . . . . Parts Damaged 3 | . . . . . 3 . . . . . . . . . . . . . . . . . . . . . . . Bothacking | -11 -10 -10 -10 -9 -8 -7 -7 -7 -7 -7 -7 -6 -6 -6 -6 -6 -6 -5 -5 -5 -5 -4 -4 -3 -2 -2 -1 -1 ------------ Run | Yrd Mat Min Exi Min Mat Fac Was Fac Low Low Dat Pro Fac Ext Cet Arc Hub Fac Upp Upp War Pro Fac Res Res Qua Acc Com Used RIF Installer . | . . . . . . . . . . . . . . . . . . . . . . . . . . . . . Robots Hacked . | . . . . . . . . . . . . . . . . . . . . . . . . . . . . . Non-combat . | . . . . . . . . . . . . . . . . . . . . . . . . . . . . . Combat . | . . . . . . . . . . . . . . . . . . . . . . . . . . . . . Robot Hacks Applied . | . . . . . . . . . . . . . . . . . . . . . . . . . . . . . Relay Couplers Released 2 | . . . . . . . . . . . . . . . . . . . . . . . . . 2 . . . Machine Destruction 2 | . . . . . . . . . . . . . . . . . . . . . . . . . 2 . . . Fabnet Peak Effective % . | . . . . . . . . . . . . . . . . . . . . . . . . . . . . . Robots Rewired 13 | . . . . . . . . . . . . . . 13 . . . . . . . . . . . . . . Allies Hacked 1 | . . . . . . . . 1 . . . . . . . . . . . . . . . . . . . . Hacks Repelled . | . . . . . . . . . . . . . . . . . . . . . . . . . . . . . Allies | -11 -10 -10 -10 -9 -8 -7 -7 -7 -7 -7 -7 -6 -6 -6 -6 -6 -6 -5 -5 -5 -5 -4 -4 -3 -2 -2 -1 -1 -------- Run | Yrd Mat Min Exi Min Mat Fac Was Fac Low Low Dat Pro Fac Ext Cet Arc Hub Fac Upp Upp War Pro Fac Res Res Qua Acc Com Total Allies 45 | . 1 . . . . 1 18 . . . . . . 20 5 . . . . . . . . . . . . . Largest Group 18 | . 1 . . . . 1 18 18 . . . . . 11 13 11 7 7 7 6 . . . . . . . . Highest-Rated Group 833 | . 10 . . . . 26 444 443 . . . . . 449 833 779 539 535 535 439 . . . . . . . . Highest-Rated Ally 159 | . 10 . . . . 26 35 35 . . . . . 159 159 150 96 96 96 96 . . . . . . . . Total Orders 4 | . . . . . . . . . . . . . . . . . 4 . . . . . . . . . . . STAY 2 | . . . . . . . . . . . . . . . . . 2 . . . . . . . . . . . FOLLOW 2 | . . . . . . . . . . . . . . . . . 2 . . . . . . . . . . . Ally Attacks 411 | . . . . . . . 7 169 . . . . . 129 35 18 36 . 16 1 . . . . . . . . Total Damage 9594 | . . . . . . . 150 3150 . . . . . 3168 722 733 1219 . 407 45 . . . . . . . . Kills 82 | . . . . . . . 1 32 . . . . . 24 9 3 8 . 4 1 . . . . . . . . Allies Corrupted 4 | . . . . . . . . 2 . . . . . . . . . . . 2 . . . . . . . . Allies Melted 5 | . . . . . . . . . . . . . . . . 1 . . . . 2 . . . 1 . . 1 Intel | -11 -10 -10 -10 -9 -8 -7 -7 -7 -7 -7 -7 -6 -6 -6 -6 -6 -6 -5 -5 -5 -5 -4 -4 -3 -2 -2 -1 -1 ------- Run | Yrd Mat Min Exi Min Mat Fac Was Fac Low Low Dat Pro Fac Ext Cet Arc Hub Fac Upp Upp War Pro Fac Res Res Qua Acc Com Active Infowar (turns) 5695 | . . . . . . . . . . . . . . . . . . . 42 718 110 284 353 1015 1332 133 987 721 IFF 1155 | . . . . . . . . . . . . . . . . . . . 42 718 110 284 1 . . . . . Structural 3109 | . . . . . . . . . . . . . . . . . . . . . . . 352 1015 620 133 987 2 Jamming 3035 | . . . . . . . . . . . . . . . . . . . . . . . . . 1331 . 983 721 Robot Analysis Total 154 | . . . . . . . . . . . 154 . . . . . . . . . . . . . . . . . Derelict Logs Recovered 10 | . . . . 1 . . . . 1 3 . 2 . . . . . . 1 . . 2 . . . . . . Drone Launches . | . . . . . . . . . . . . . . . . . . . . . . . . . . . . . Drone Recoveries . | . . . . . . . . . . . . . . . . . . . . . . . . . . . . . Exploration | -11 -10 -10 -10 -9 -8 -7 -7 -7 -7 -7 -7 -6 -6 -6 -6 -6 -6 -5 -5 -5 -5 -4 -4 -3 -2 -2 -1 -1 ------------- Run | Yrd Mat Min Exi Min Mat Fac Was Fac Low Low Dat Pro Fac Ext Cet Arc Hub Fac Upp Upp War Pro Fac Res Res Qua Acc Com Turns Passed 24578 | 10 1672 190 258 105 1654 2849 680 1579 1258 411 501 506 390 2109 447 170 554 178 482 718 1497 284 817 1067 1811 134 987 1260 Spaces Moved 13715 | 5 944 127 224 50 925 2045 436 848 532 297 175 280 238 966 191 67 308 103 279 475 651 175 380 770 1080 112 367 665 Core 10 | . . . . . . . . . . . . . . . . . . . . . . . . . . . . 10 Treads 1329 | . 194 . . . . . 158 288 . . 77 32 7 385 70 . . . . . 94 1 13 . . . 4 6 Legs 2 | 2 . . . . . . . . . . . . . . . . . . . . . . . . . . . . Wheels 12374 | 3 750 127 224 50 925 2045 278 560 532 297 98 248 231 581 121 67 308 103 279 475 557 174 367 770 1080 112 363 649 Hover . | . . . . . . . . . . . . . . . . . . . . . . . . . . . . . Flight . | . . . . . . . . . . . . . . . . . . . . . . . . . . . . . Fastest Speed 50 | 95 95 115 115 115 100 110 90 120 135 135 135 150 150 120 120 150 150 150 150 150 150 150 165 110 110 110 107 50 Average Speed 137 | 105 139 115 115 115 111 119 122 147 135 135 181 160 152 180 179 150 150 150 150 150 162 150 167 121 129 110 113 120 Slowest Speed 240 | 120 240 115 115 115 125 125 240 160 135 135 240 240 240 240 240 150 150 150 150 150 240 240 240 130 130 110 240 240 Overloaded Moves . | . . . . . . . . . . . . . . . . . . . . . . . . . . . . . Propulsion Burnouts . | . . . . . . . . . . . . . . . . . . . . . . . . . . . . . Robots Hopped . | . . . . . . . . . . . . . . . . . . . . . . . . . . . . . Potential Cave-ins 6 | . . . . . . . . . . . . . . . . . . . . . . . . . . . 2 4 Cave-ins Triggered 1 | . . . . . . . . . . . . . . . . . . . . . . . . . . . . 1 Exploration Rate (%) 44 | 2 96 20 60 11 80 55 96 31 62 54 80 62 6 85 72 77 23 3 51 51 74 43 11 26 21 17 7 24 Regions Visited 28 Branch Regions 17 Pre-discovered Areas 33 | . 1 1 1 . 1 . . . 1 . 27 . . . . . . . . . . 1 . . . . . . Known Exits Taken 9 | . . . . . 1 . . 1 . . . 1 1 . . . 1 1 . . . 1 1 . 1 . . . Unknown Exits Taken 17 | 1 1 1 1 1 . . . . 1 1 1 . . 1 1 1 . . 1 1 1 . . 1 . 1 1 . Scrap Searched 9 | . . . . 1 . . . . 2 . . 3 . . . . . . 1 2 . . . . . . . . Spaces Dug 92 | . . . . . 3 3 . . . 26 . 10 2 1 . . 1 . . 15 1 . 4 6 2 1 4 13 Terrain Destroyed 356 | . . 17 . 1 3 3 . 2 20 26 . 34 3 11 2 6 9 . 2 27 19 6 27 10 28 1 23 76 Melee 8 | . . . . . 3 3 . . . . . . 1 1 . . . . . . . . . . . . . . Projectile 212 | . . . . 1 . . . 2 . . . . 2 10 2 6 9 . 2 . 19 6 16 9 28 1 23 76 AOE 135 | . . 17 . . . . . . 20 26 . 34 . . . . . . . 27 . . 11 . . . . . Terrain Rammed . | . . . . . . . . . . . . . . . . . . . . . . . . . . . . . Walls Destroyed . | . . . . . . . . . . . . . . . . . . . . . . . . . . . . . Machines Disabled . | . . . . . . . . . . . . . . . . . . . . . . . . . . . . . Actions | -11 -10 -10 -10 -9 -8 -7 -7 -7 -7 -7 -7 -6 -6 -6 -6 -6 -6 -5 -5 -5 -5 -4 -4 -3 -2 -2 -1 -1 --------- Run | Yrd Mat Min Exi Min Mat Fac Was Fac Low Low Dat Pro Fac Ext Cet Arc Hub Fac Upp Upp War Pro Fac Res Res Qua Acc Com Total 18016 | 13 1151 157 224 69 1453 2407 543 1054 1046 304 279 318 260 1194 282 93 376 127 331 478 1024 188 528 850 1382 123 778 984 Wait 2683 | . 93 24 . . 367 220 30 114 491 . 39 22 4 74 45 6 53 20 39 . 320 10 113 7 187 4 282 119 Move 13688 | 4 943 126 223 49 924 2045 435 847 531 296 174 279 237 965 190 66 307 102 278 474 650 174 379 769 1079 111 366 665 Hop . | . . . . . . . . . . . . . . . . . . . . . . . . . . . . . Pick Up 182 | . 11 . 1 3 28 26 4 13 4 2 8 1 5 5 10 1 1 1 2 . 5 . 3 11 10 . 11 16 Fast Attach 61 | . 1 . . . 12 1 10 3 1 . . . . 1 1 . . 1 . . 3 . 1 6 5 . 6 9 Attach 87 | 2 2 . . 1 4 5 3 3 3 1 4 . 2 2 . 1 . 2 . . 1 . 3 2 10 3 22 11 Detach 40 | 3 . . . . 4 3 1 1 2 1 1 . . . . . . . . . 1 . 1 1 2 4 8 7 Swap 198 | . 11 . . 1 17 25 5 9 2 2 6 5 5 9 7 . 2 . 5 2 12 1 8 14 19 . 5 26 Drop 179 | 4 10 . . 1 22 29 11 5 . . 6 1 4 7 17 . 1 1 3 . 7 . 3 15 17 . 3 12 Fire 775 | . 80 7 . 14 72 45 44 56 12 2 22 10 2 61 12 19 12 . 4 2 25 3 17 25 53 1 73 102 Melee 34 | . . . . . 3 8 . 2 . . 19 . 1 1 . . . . . . . . . . . . . . Ram 1 | . . . . . . . . 1 . . . . . . . . . . . . . . . . . . . . Kick . | . . . . . . . . . . . . . . . . . . . . . . . . . . . . . Crush 2 | . . . . . . . . . . . . . . . . . . . . . . . . . . . 2 . Escape Stasis 26 | . . . . . . . . . . . . . . 18 . . . . . . . . . . . . . 8 Rewire 51 | . . . . . . . . . . . . . . 51 . . . . . . . . . . . . . . Trap . | . . . . . . . . . . . . . . . . . . . . . . . . . . . . . Miscellaneous 9 | . . . . . . . . . . . . . . . . . . . . . . . . . . . . 9 Route ------- -11/Scrapyard -10/Materials (discovered 4 exits: [*Mat x3] / [*Min]) -10/Mines -10/Exiles -9/Mines -8/Materials (discovered 3 exits: *Fac x3) -7/Factory (discovered 2 exits: *Fac x2) -7/Waste -7/Factory -7/Lower Caves -7/Lower Caves (discovered 2 exits: *Fac / *Dat) -7/Data Miner -6/Proximity Caves -6/Factory (discovered 4 exits: Low x2 / *Ext x2) -6/Extension (discovered 2 exits: *Fac / *Cet) -6/Cetus (discovered 2 exits: *Fac / [*Arc]) -6/Archives (discovered 2 exits: *Fac / *Hub) -6/Hub_04(d) (discovered 4 exits: *Fac x4) -5/Factory (discovered 2 exits: *Upp x2) -5/Upper Caves -5/Upper Caves -5/Warlord -4/Proximity Caves -4/Factory (discovered 5 exits: *Res x4 / [*Upp]) -3/Research (discovered 2 exits: *Res / *Tes) -2/Research -2/Quarantine -1/Access -1/Command History --------- Turn | Location | Event 1 | -11/Scrapyard | Discovered new exit (range 3) 11 | -11/Scrapyard | Entered Materials 252 | -10/Materials | Discovered new exit (range 9) 281 | -10/Materials | Discovered new exit (range 11) 520 | -10/Materials | Discovered new exit (range 16) 616 | -10/Materials | Build established: Mutant 997 | -10/Materials | Discovered new exit (range 6) 1257 | -10/Materials | Core integrity fell below 50% 1683 | -10/Materials | Entered Mines 1684 | -10/Mines | Learned location of Storage (-9) 1778 | -10/Mines | Assembled infested the area 1869 | -10/Mines | Discovered new exit (range 5) 1873 | -10/Mines | Entered Exiles 1901 | -10/Exiles | Met 8R-AWN 1921 | -10/Exiles | Met EX-HEX 1956 | -10/Exiles | Met EX-BIN 1972 | -10/Exiles | Aligned with FarCom system 1974 | -10/Exiles | Given EX-Vault access code 2001 | -10/Exiles | Opened EX-Vault 2010 | -10/Exiles | Found Longsword +1 2037 | -10/Exiles | Warned to stay clear of 0b10 Research branches 2072 | -10/Exiles | Met EX-DEC 2077 | -10/Exiles | Learned location of Zion (-6) 2117 | -10/Exiles | Discovered new exit (range 14) 2131 | -10/Exiles | Left Exiles lab with Longsword +1 2131 | -10/Exiles | Entered Mines 2143 | -9/Mines | Core integrity fell below 20% 2212 | -9/Mines | Discovered new exit (range 7) 2236 | -9/Mines | Entered Materials 2236 | -8/Materials | Evolved 4 slots: Propulsion x2, Utility x2 2288 | -8/Materials | Repaired Lgt. Treads 2328 | -8/Materials | Repaired Imp. Heat Sink 2866 | -8/Materials | Found Powered Armor 2868 | -8/Materials | Found Powered Armor 2870 | -8/Materials | Found Powered Armor 2873 | -8/Materials | Found Powered Armor 3230 | -8/Materials | Repaired Broken Adv. Targeting Computer 3263 | -8/Materials | Repaired Arm. Wheel+ 3806 | -8/Materials | Identified exit to Factory 3890 | -8/Materials | Entered Factory 3890 | -7/Factory | Evolved 2 slots: Weapon x2 4193 | -7/Factory | Build established: Skirmisher 4229 | -7/Factory | Repaired Broken Enh. Autogun 4504 | -7/Factory | Repaired Broken Enh. Autogun 4713 | -7/Factory | Discovered new exit (range 4) 4813 | -7/Factory | Identified exit to Factory 5555 | -7/Factory | Discovered exit to Factory (range 9) 6739 | -7/Factory | Sucked down chute 6739 | -7/Factory | Entered Waste 6752 | -7/Waste | Spotted C-40 Crusher 6755 | -7/Waste | Spotted C-40 Crusher 6763 | -7/Waste | Destroyed C-40 Crusher 6814 | -7/Waste | Spotted C-40 Crusher 6832 | -7/Waste | Destroyed C-40 Crusher 6834 | -7/Waste | Destroyed C-40 Crusher 6838 | -7/Waste | Spotted C-40 Crusher 6843 | -7/Waste | Destroyed C-40 Crusher 6878 | -7/Waste | Spotted C-40 Crusher 6883 | -7/Waste | Spotted C-40 Crusher 6890 | -7/Waste | Destroyed C-40 Crusher 6907 | -7/Waste | Crushed by Compactor (1 part destroyed, 1 dropped) 6910 | -7/Waste | Crushed by Compactor (1 part destroyed, 2 dropped) 6913 | -7/Waste | Crushed by Compactor (1 part destroyed, 2 dropped) 6916 | -7/Waste | Crushed by Compactor (1 part destroyed, 2 dropped) 6919 | -7/Waste | Crushed by Compactor (1 part destroyed) 6950 | -7/Waste | Lost 5 parts (1p1u3w) 7076 | -7/Waste | Warlord forces began an assault 7378 | -7/Waste | Discovered new exit (range 14) 7396 | -7/Waste | Build established: Derelict-Tank 7419 | -7/Waste | Entered Factory 7419 | -7/Factory | Accompanied by 18 allies 7802 | -7/Factory | Garrison activated, responded to threat 8029 | -7/Factory | Lost 3 allies 8158 | -7/Factory | Repaired Antimatter Reactor 8219 | -7/Factory | First assault squad dispatched 8372 | -7/Factory | Lost 3 allies 8434 | -7/Factory | Lost 4 allies 8451 | -7/Factory | Build established: Scavenger-Tank 8625 | -7/Factory | Repaired Battle Rifle 8897 | -7/Factory | Build established: Tank 8966 | -7/Factory | Discovered new exit (range 6) 8991 | -7/Factory | Identified exit to Lower Caves 8998 | -7/Factory | Entered Lower Caves 9203 | -7/Lower Caves | Build established: Scavenger-Tank 10195 | -7/Lower Caves | Discovered new exit (range 15) 10224 | -7/Lower Caves | Attracted the attention of an 0b10 checkpoint 10256 | -7/Lower Caves | Entered another Lower Caves area 10256 | -7/Lower Caves | Discovered exit to Factory (range 9) 10257 | -7/Lower Caves | Encountered a Warlord checkpoint 10286 | -7/Lower Caves | Learned Factory terminal intel 10420 | -7/Lower Caves | Build established: Tank 10646 | -7/Lower Caves | Discovered new exit (range 16) 10663 | -7/Lower Caves | Learned Factory stockpile data 10667 | -7/Lower Caves | Entered Data Miner 10667 | -7/Data Miner | Discovered new exit (range 6) 10693 | -7/Data Miner | Met Data Miner 10727 | -7/Data Miner | Learned location of Section 7 (-2) 10727 | -7/Data Miner | Acquired the access code to Warlord's prototype stash 10740 | -7/Data Miner | Received God Mode back door access code from Data Miner 10754 | -7/Data Miner | Destroyed Data Miner 10757 | -7/Data Miner | Found Prototype Hackware 10759 | -7/Data Miner | Found Prototype Hackware 10760 | -7/Data Miner | Interfaced with the Data Conduit 11168 | -7/Data Miner | Entered Proximity Caves 11188 | -6/Proximity Caves | Build established: Scavenger-Tank 11350 | -6/Proximity Caves | Learned Factory terminal intel 11674 | -6/Proximity Caves | Entered Factory 11674 | -6/Factory | Evolved 2 slots: Utility x2 11674 | -6/Factory | Identified Deep Network Scanner 11675 | -6/Factory | Identified exit to Extension 11675 | -6/Factory | Identified Ghost Barrier 11677 | -6/Factory | Loaded intel: 260 machine locations 11678 | -6/Factory | Loaded intel: 28 terminal locations 11811 | -6/Factory | Identified exit to Lower Caves 12017 | -6/Factory | Build established: Hacker-Tank 12064 | -6/Factory | Entered Extension 12065 | -6/Extension | Loaded intel: 35 machine locations 12239 | -6/Extension | Disrupted transfer network 12316 | -6/Extension | Rescued A7 12341 | -6/Extension | Watched by a mysterious "MATRIX" hacker. 12348 | -6/Extension | Rescued a captive Derelict 12395 | -6/Extension | Rescued a captive Derelict 12396 | -6/Extension | Rescued a captive Derelict 12692 | -6/Extension | Spotted B-75 Beast 12733 | -6/Extension | Destroyed B-75 Beast 12736 | -6/Extension | Lost 5 allies 13532 | -6/Extension | Spotted B-75 Beast 13554 | -6/Extension | Allies destroyed B-75 Beast 13642 | -6/Extension | Rescued a captive Derelict 13782 | -6/Extension | Lost 4 allies 14112 | -6/Extension | Rescued a captive Derelict 14113 | -6/Extension | Rescued a captive Derelict 14136 | -6/Extension | Discovered new exit (range 10) 14138 | -6/Extension | Discovered new exit (range 6) 14173 | -6/Extension | Entered Cetus 14173 | -6/Cetus | Accompanied by 9 allies (A7) 14174 | -6/Cetus | Loaded intel: 24 machine locations 14178 | -6/Cetus | Acquired a Cetus Manufacturing Module code from A7 14189 | -6/Cetus | Spotted Cetus Guard 14190 | -6/Cetus | Spotted Cetus Guard 14192 | -6/Cetus | Allies destroyed Cetus Guard 14193 | -6/Cetus | Spotted Cetus Guard 14194 | -6/Cetus | Destroyed Cetus Guard 14199 | -6/Cetus | Destroyed Cetus Guard 14201 | -6/Cetus | Spotted Cetus Guard 14204 | -6/Cetus | Allies destroyed Cetus Guard 14318 | -6/Cetus | Started Cetus Manufacturing Module 14343 | -6/Cetus | Manufactured an Enhanced Grunt 14368 | -6/Cetus | Manufactured an Enhanced Grunt 14369 | -6/Cetus | Escorted A7 to Cetus Mainframe 14393 | -6/Cetus | Manufactured an Enhanced Grunt 14399 | -6/Cetus | Discovered new exit (range 16) 14418 | -6/Cetus | Manufactured an Enhanced Grunt 14428 | -6/Cetus | Spotted Cetus Guard 14428 | -6/Cetus | Spotted Cetus Guard 14430 | -6/Cetus | Spotted Cetus Guard 14437 | -6/Cetus | Spotted Cetus Guard 14442 | -6/Cetus | Allies destroyed Cetus Guard 14443 | -6/Cetus | Manufactured an Enhanced Grunt 14443 | -6/Cetus | Allies destroyed Cetus Guard 14450 | -6/Cetus | Destroyed Cetus Guard 14452 | -6/Cetus | Allies destroyed Cetus Guard 14468 | -6/Cetus | Discovered new exit (range 16) 14480 | -6/Cetus | Met Revision 17 14481 | -6/Cetus | Lost 3 allies 14620 | -6/Cetus | Entered Archives 14620 | -6/Archives | Accompanied by 11 allies (A7) 14621 | -6/Archives | Loaded intel: 8 machine locations 14625 | -6/Archives | Received a hacking code to weaken MAIN.C 14682 | -6/Archives | Build established: Commander-Tank 14748 | -6/Archives | Discovered new exit (range 15) 14760 | -6/Archives | Discovered new exit (range 16) 14790 | -6/Archives | Entered Hub_04(d) 14790 | -6/Hub_04(d) | Accompanied by 7 allies 14791 | -6/Hub_04(d) | Loaded intel: 87 machine locations 14921 | -6/Hub_04(d) | Identified exit to Factory 15006 | -6/Hub_04(d) | Build established: Scavenger-Tank 15344 | -6/Hub_04(d) | Entered Factory 15344 | -5/Factory | Accompanied by 7 allies 15344 | -5/Factory | Evolved 2 slots: Utility x2 15345 | -5/Factory | Loaded intel: 229 machine locations 15346 | -5/Factory | Loaded intel: 26 terminal locations 15453 | -5/Factory | Identified exit to Upper Caves 15522 | -5/Factory | Entered Upper Caves 15522 | -5/Upper Caves | Accompanied by 7 allies 15769 | -5/Upper Caves | Learned Factory non-interactive machine intel 15981 | -5/Upper Caves | Discovered new exit (range 8) 16004 | -5/Upper Caves | Entered another Upper Caves area 16004 | -5/Upper Caves | Accompanied by 6 allies 16261 | -5/Upper Caves | Build established: Hacker-Tank 16305 | -5/Upper Caves | Lost 4 allies 16710 | -5/Upper Caves | Discovered new exit (range 9) 16722 | -5/Upper Caves | Entered Warlord 16764 | -5/Warlord | System corruption reached 10% 16792 | -5/Warlord | System corruption cleaned by Quarantine Array 16993 | -5/Warlord | Opened Warlord's prototype stash 17007 | -5/Warlord | Found Ghost Barrier 17021 | -5/Warlord | Found Exp. Armor Integrity Analyzer 17410 | -5/Warlord | Met Warlord 17423 | -5/Warlord | Warlord's base attacked by MAIN.C 17561 | -5/Warlord | Spotted B-86 Titan 17583 | -5/Warlord | Spotted B-75 Beast 17661 | -5/Warlord | Destroyed B-75 Beast 17763 | -5/Warlord | Spotted B-86 Titan 17767 | -5/Warlord | Spotted B-75 Beast 17773 | -5/Warlord | Warlord forces counterattacked 17841 | -5/Warlord | Lost 5 allies 17935 | -5/Warlord | Spotted Striker 17941 | -5/Warlord | Spotted Striker 17946 | -5/Warlord | P-80 Master assimilated allied N1-Y89(g) 17949 | -5/Warlord | Destroyed Striker 18004 | -5/Warlord | Destroyed 9 combat bots 18010 | -5/Warlord | Lost 13 allies 18098 | -5/Warlord | Warlord base infiltrated, sounded retreat 18142 | -5/Warlord | Spotted Striker 18147 | -5/Warlord | Spotted Striker 18152 | -5/Warlord | Spotted Striker 18157 | -5/Warlord | Lost 3 allies 18185 | -5/Warlord | Spotted Executioner 18191 | -5/Warlord | Discovered new exit (range 14) 18219 | -5/Warlord | Entered Proximity Caves 18354 | -4/Proximity Caves | Spotter reported a threat 18481 | -4/Proximity Caves | Identified exit to Factory 18503 | -4/Proximity Caves | Entered Factory 18503 | -4/Factory | Evolved 2 slots: Power x1, Utility x1 18504 | -4/Factory | Loaded intel: 306 machine locations 18505 | -4/Factory | Loaded intel: 252 non-interactive machine locations 18580 | -4/Factory | Identified exit to Research 18958 | -4/Factory | Discovered new exit (range 16) 19158 | -4/Factory | Build established: Scavenger-Tank 19320 | -4/Factory | Entered Research 19320 | -3/Research | Evolved 2 slots: Propulsion x2 19321 | -3/Research | Loaded intel: 119 machine locations 19455 | -3/Research | Discovered new exit (range 3) 19457 | -3/Research | Identified exit to Testing 19520 | -3/Research | Revision forces began assault on 0b10 19742 | -3/Research | Intercept squad dispatched 19761 | -3/Research | Met up with Revision 17++ 20020 | -3/Research | Research terminal network offline 20025 | -3/Research | Build established: Hacker-Tank 20155 | -3/Research | Spotted Striker 20162 | -3/Research | Destroyed Striker 20162 | -3/Research | Spotted Striker 20188 | -3/Research | Lost 4 allies 20324 | -3/Research | Discovered new exit (range 5) 20387 | -3/Research | Entered another Research area 20387 | -2/Research | Warlord forces began assault on 0b10 20387 | -2/Research | Evolved 2 slots: Utility x2 20388 | -2/Research | Loaded intel: 146 machine locations 20497 | -2/Research | Research machine network offline 20521 | -2/Research | Met up with Warlord 20676 | -2/Research | Borebot progress halted 20698 | -2/Research | Build established: Scavenger-Tank 20917 | -2/Research | Borebot progress halted 21047 | -2/Research | Borebot progress halted 21064 | -2/Research | Spotted Striker 21066 | -2/Research | Destroyed Striker 21094 | -2/Research | Lost 3 allies 21318 | -2/Research | Build established: Hacker-Tank 21453 | -2/Research | Warlord invited to help at Command 21453 | -2/Research | Given Cave Seal Controls access code 21564 | -2/Research | Spotted Executioner 21600 | -2/Research | Found Exp. Core Analyzer 21808 | -2/Research | Spotted Executioner 21814 | -2/Research | Spotted Executioner 21820 | -2/Research | Destroyed Executioner 21859 | -2/Research | Spotted Executioner 21873 | -2/Research | Lost 3 allies 21873 | -2/Research | Spotted Executioner 21897 | -2/Research | Spotted Executioner 21898 | -2/Research | Destroyed Executioner 21906 | -2/Research | Destroyed Executioner 21909 | -2/Research | Spotted Striker 21910 | -2/Research | Destroyed Executioner 21925 | -2/Research | Destroyed Striker 21946 | -2/Research | Destroyed 11 combat bots 21951 | -2/Research | Lost 4 parts (2u2w) 21956 | -2/Research | Found Exp. Targeting Computer 21991 | -2/Research | Spotted Striker 22002 | -2/Research | Spotted Executioner 22003 | -2/Research | Spotted Executioner 22029 | -2/Research | Destroyed Executioner 22040 | -2/Research | Destroyed Executioner 22066 | -2/Research | Spotted Executioner 22067 | -2/Research | Lost 3 parts (1p1u1w) 22067 | -2/Research | Spotted Executioner 22164 | -2/Research | Lost 3 allies 22181 | -2/Research | Spotted Executioner 22182 | -2/Research | Spotted Striker 22185 | -2/Research | Discovered new exit (range 13) 22195 | -2/Research | Core integrity fell below 50% 22197 | -2/Research | Identified exit to Quarantine 22198 | -2/Research | Entered Quarantine 22199 | -2/Quarantine | Maximum security lockdown engaged 22199 | -2/Quarantine | Loaded intel: 78 machine locations 22249 | -2/Quarantine | Build established: Scavenger-Tank 22317 | -2/Quarantine | Lost 3 allies 22320 | -2/Quarantine | Discovered new exit (range 10) 22332 | -2/Quarantine | Entered Access 22332 | -1/Access | Evolved 2 slots: Utility x2 22333 | -1/Access | Loaded intel: 131 machine locations 22423 | -1/Access | Repaired Hrd. Heavy Armor Plating 22460 | -1/Access | Repaired Centrium Medium Armor Plating 22976 | -1/Access | Build established: Scavenger-Gunner 22993 | -1/Access | System corruption reached 10% 23112 | -1/Access | Intercept squad dispatched 23125 | -1/Access | Spotted Tracker 23126 | -1/Access | Spotted Tracker 23137 | -1/Access | Destroyed Tracker 23144 | -1/Access | Destroyed Tracker 23160 | -1/Access | Found Prototype Energy Gun 23166 | -1/Access | Spotted Combat Programmer 23170 | -1/Access | Garrison activated, responded to threat 23174 | -1/Access | Spotted Combat Programmer 23180 | -1/Access | Destroyed Combat Programmer 23189 | -1/Access | Destroyed Combat Programmer 23218 | -1/Access | Lost 7 parts (1p2n2u2w) 23312 | -1/Access | Discovered new exit (range 7) 23319 | -1/Access | Entered Command 23320 | -1/Command | Loaded intel: 60 machine locations 23476 | -1/Command | Phase Generator disabled 23689 | -1/Command | Disengaged cave seal 23689 | -1/Command | Derelicts emerged from the dark tunnel 23689 | -1/Command | Welcomed Warlord to Command 23770 | -1/Command | Lost 5 allies 23819 | -1/Command | First assault squad dispatched 23957 | -1/Command | Lost 7 allies 23999 | -1/Command | Build established: Scavenger-Tank 24229 | -1/Command | Warlord destroyed during the assault 24260 | -1/Command | Lost 6 allies 24390 | -1/Command | Identified Immobilizer 24448 | -1/Command | Found Prototype Ballistic Cannon 24448 | -1/Command | Identified Blast Cannon 24513 | -1/Command | Spotted M Guard 24515 | -1/Command | Spotted Combat Programmer 24516 | -1/Command | Spotted Combat Programmer 24518 | -1/Command | Spotted M Guard 24557 | -1/Command | Core integrity fell below 50% 24559 | -1/Command | Destroyed M Guard 24560 | -1/Command | System corruption reached 30% 24568 | -1/Command | Destroyed Combat Programmer 24570 | -1/Command | Crushed by falling debris 24573 | -1/Command | Released all parts (7) 24574 | -1/Command | Core integrity fell below 20% 24579 | -1/Command | Destroyed by M Guard with Hellfire Missile Launcher Last Messages --------------- 24573_ Released Hvy. Neutron Cannon. 24573_ Released Huge Storage Unit. 24573_ Released Exp. Armor Integrity Analyzer. 24573_ Released Exp. Core Analyzer. 24573_ Released Exp. Targeting Computer. 24573_ Released Adv. Weapon Cycler. 24573_ Released Graphene Brace. 24574_ The unstable cave ceiling collapses. 24574_ Acquired Imp. Plasma Cutter. 24575_ Penetrated by EMDS Slug. 24577_ The unstable cave ceiling collapses. 24577_ Graphene Brace crushed. 24577_ The unstable cave ceiling collapses. 24577_ Penetrated by EMDS Slug. 24577_ Imp. Plasma Cutter destroyed. 24578_ The unstable cave ceiling collapses. 24578_ Hvy. Neutron Cannon crushed. 24578_ The unstable cave ceiling collapses. 24579_ Penetrated by EMDS Slug. 24579_ Knocked back. Map ----- +----------------------------------------------------+ | ?????????????????????????????????????????????????? | | ?????????????????????????????????????????????????? | | ?????????????????????????????????????????????????? | | ?????????????????????????????????????????????????? | | ?????????????????????????????????????????????????? | | ?????????????????????????????????????????????????? | | ?????????????????????????????????????????????????? | | ?????????????????????????????????????????????????? | | ?????????????????????????????????????????????????? | | ?????????????????????????????????????????????????? | | ?????????????????????????????????????????????????? | | ?????????????????????????????????????????????????? | | ?????????????????????????????????????????????????? | | ?????????????????????????????????????????????????? | | ?????????????????????????????????????????????????? | | ?????????????????????????????????????????????????? | | ???????????????????"""???????????##??????????????? | | ???????????????????"""?????????##%#??????????????? | | ???????????????????"""???#####?# ########?#####?# | | ??????????????????????T??# ### ; #?# #?# | | ??????????????????#+++#### W ## ;;# ### ### | | ??????????????????# + | | ??????????????????# % + | | ??????????????????# ! +[ | | ??????????????????# + | | ??????????????????# @% + | | ??????????????????# ### YW # ### ### | | ??????????????????#??????# [p #?# #?? | | ?????????????????????????## [[[# ####?#####?? | | ?????????????????????????# [!#=# #??????????? | | ?????????????????????????# [ [[[## #??????????? | | ?????????????????????????# # #??????????? | | ?????????????????????????# ##??????????? | | ?????????????????????????# ##???????????? | | ?????????????????????????# # # #???????????? | | ?????????????????????????# # #####???????????? | | ?????????????????????????# # #???????????????? | | ?????????????????????????# ## #???????????????? | | ?????????????????????????" ## ##???????????????? | | ????????????????????????## ####????????????????? | | ?????????????????????????# #???????????????????? | | ?????????????????????????# ????????????????????? | | ?????????????????????????# ????????????????????? | | ?????????????????????????# ????????????????????? | | ?????????????????????????# ????????????????????? | | ??????????????????????????? ?????????????????????? | | ?????????????????????????????????????????????????? | | ?????????????????????????????????????????????????? | | ?????????????????????????????????????????????????" | | ?????????????????????????????????????????????????" | +----------------------------------------------------+ Best States ------------- Heat Dissipation 102 Energy Generation 49 Energy Capacity 600 Matter Stores 300 Matter Capacity 300 Sight Range 16 Terrain Scan Density 10 Jamming Range 16 Armor Coverage 1650 Resistance: KI 30 Resistance: EX 50 Utility Shielding 66 Weapon Shielding 66 Point Defense Rating 480 Weapon Cycling 25 Phase Shifting 15 Evasion (%) 55 Targeting Accuracy 12 Core Analysis 8 Armor Integrity Analysis 50 Recoil Reduction 4 Offensive Hacking 25 Defensive Hacking 20 Item Schematics ----------------- Hcp. Storage Unit | -10/Materials | Hacked Adv. Targeting Computer | -8/Materials | Scanalyzed Hpw. Tractor Beam | -8/Materials | Scanalyzed Enh. Autogun | -8/Materials | Scanalyzed Powered Armor | -8/Materials | Scanalyzed Combat Drone Bay | -7/Data Miner | Free Lgt. Regenerative Plating | -7/Data Miner | Free Biomechanical Wings | -7/Data Miner | Free Gravity Neutralizer | -7/Data Miner | Free Imp. Heavy Laser | -7/Data Miner | Free Nuclear Pulse Array | -7/Data Miner | Free Imp. Focal Shield | -7/Data Miner | Free Imp. Arc Projector | -7/Data Miner | Free Quantum Capacitor | -6/Extension | Hacked Adv. Point Defense System | -3/Research | Hacked Robot Schematics ------------------ L-41 Fighter | -7/Data Miner | Free I-36 Angel | -7/Data Miner | Free G-50 Soldier | -7/Data Miner | Free S-27 Virus | -7/Data Miner | Free Fabricated ------------ Nothing Repaired ---------- Lgt. Treads | 32% | -8/Materials Imp. Heat Sink | 20% | -8/Materials Adv. Targeting Computer | 99% | -8/Materials | Broken Arm. Wheel | 73% | -8/Materials Enh. Autogun | 83% | -7/Factory | Broken Enh. Autogun | 70% | -7/Factory | Broken Antimatter Reactor | 50% | -7/Factory Battle Rifle | 12% | -7/Factory Hrd. Heavy Armor Plating | 13% | -1/Access Centrium Medium Armor Plating | 5% | -1/Access Studied --------- Arm. Treads | -8/Materials | Hacked Arm. Wheel | -8/Materials | Hacked Missile Launcher | -8/Materials | Hacked Imp. Light Cannon | -8/Materials | Hacked Com. Wheel | -7/Factory | Hacked Arm. Huge Wheel | -7/Factory | Hacked Mni. Grenade Launcher | -7/Factory | Hacked Powered Hammer | -7/Factory | Hacked Centrium Wheel | -2/Research | Hacked Alien Tech Used ----------------- None Achievements -------------- Generalissimo Challenges ------------ None Game ------ Seed LinearPlexusNanosword Manual? 0 Play Time 04:52:54 Cumulative 162.1 hours Start 2026.04.16 @ 20:20:30 End 2026.04.17 @ 13:16:54 Sessions 3 Manual Loads 0 Difficulty Rogue Special Mode None Game No. 105 Rogue 105 Adventurer 0 Explorer 0 Win Type - Total 5 Types 3/0/1/1/0/0/0/0/0/0 Lore% 63 Gallery% 54 Achievement% 48 Wizard Run 0 Options --------- Layout 2 ASCII 0 Keyboard 1 Movement Arrows Keybinds 0 Fullscreen 2 Font 24/Terminus Map View 50x44 Zoom Use 0% Tactical HUD 1 Map Filters NONE Filters NONE Steam 1 RUN: 0a9e264b-2d23-42c3-aa03-2c7c8c07dd95